Cogmind - Beta 14 @@@ ROGUE MODE // 2025.03.10 @ 18:45:40 Player: astrea Result: Destroyed by G-34 Mercenary with Small Laser Performance ------------- Evolutions (0) 0 Regions Visited (1) 200 Robots Destroyed (11) 55 Value Destroyed (239) 239 Prototype IDs (0) 0 Alien Tech Used (0) 0 Bonus (0) 0 TOTAL SCORE: 494 Bonus ------- None Cogmind --------- Core Integrity 0/250 Matter 290/300 Energy 125/125 System Corruption 0% Temperature Cool (6) Movement Core (100) Ox1 Location -10/Materials Parts ------- > --- POWER (1) -------- Light Ion Engine > --- PROPULSION (2) --- (None) > --- UTILITY (2) ------ Signal Interpreter Weapon Shielding > --- WEAPON (2) ------- (None) > --- INVENTORY (5) ---- Light Ion Engine Aluminum Leg Wheel Wheel Peak State ------------ > --- POWER ------------ Light Ion Engine > --- PROPULSION ------- Aluminum Leg Aluminum Leg > --- UTILITY ---------- Structural Scanner Signal Interpreter > --- WEAPON ----------- Light Assault Rifle Light Assault Rifle > --- INVENTORY -------- Light Ion Engine Aluminum Leg Wheel Wheel Grenade Launcher [Rating: 7] Favorites ----------- Power Light Ion Engine Engine Light Ion Engine Propulsion Aluminum Leg Leg Aluminum Leg Utility Structural Scanner Device Structural Scanner Processor Signal Interpreter Protection Weapon Shielding Weapon Light Assault Rifle Ballistic Gun Light Assault Rifle Launcher Grenade Launcher Build | -11 -10 ------- Run | Yrd Mat Slots Evolved . | . . Power . | . . Propulsion . | . . Utility . | . . Weapon . | . . Parts Attached 11 | 5 6 Power 2 | 1 1 Engine 2 | 1 1 Core . | . . Reactor . | . . Propulsion 2 | 2 . Treads . | . . Leg 2 | 2 . Wheel . | . . Hover . | . . Flight . | . . Utility 3 | . 3 Device 1 | . 1 Storage . | . . Processor 1 | . 1 Hackware . | . . Protection 1 | . 1 Artifact . | . . Weapon 4 | 2 2 Energy Gun . | . . Energy Cannon . | . . Ballistic Gun 3 | 2 1 Ballistic Cannon . | . . Launcher 1 | . 1 Special Weapon . | . . Impact Weapon . | . . Slashing Weapon . | . . Piercing Weapon . | . . Special Melee Weapon . | . . Unidentified Prototypes . | . . Parts Lost 7 | . 7 Power 1 | . 1 Propulsion 2 | . 2 Utility 1 | . 1 Weapon 3 | . 3 Highest Loss Streak 7 | . 7 To Critical Strikes . | . . Average Slot Usage (%) 75 | . 75 Engine 13 | . 13 Leg 25 | . 25 Device 4 | . 4 Processor 3 | . 3 Protection 1 | . 1 Ballistic Gun 26 | . 26 Peak Build Rating 7 | 5 7 Average Rating 5 | 4 5 On Entrance 2 | . 5 Naked Turns . | . . Heaviest Build 6 | 5 6 Greatest Support 20 | 20 20 Greatest Overweight (x) 1 | . 1 Average Overweight (x) . | . . Largest Inventory Capacity 5 | 5 5 Average Capacity 5 | 5 5 Most Carried 5 | 4 5 Average Carried 4 | 2 4 Final Capacity 5 | 5 5 Final Carried 4 | 4 4 Class Distribution -------------------- 100% | Mutant Dominant Class ---------------- Mutant | -10/Materials Resources | -11 -10 ----------- Run | Yrd Mat Matter Collected 368 | 262 106 Remotely . | . . Salvage Created 310 | 76 234 Parts 16 | 4 12 Haulers Intercepted . | . . Recyclers Shooed 1 | . 1 Parts Field Recycled . | . . Retrieved Matter . | . . Parts Self-Destructed . | . . Prevented . | . . Kills | -11 -10 ------- Run | Yrd Mat Combat Hostiles Destroyed 7 | 1 6 Guns 5 | 1 4 AOE 2 | . 2 Classes Destroyed 5 | 2 3 Worker 2 | 1 1 Builder 1 | . 1 Watcher 1 | . 1 Swarmer 2 | . 2 Grunt 5 | 1 4 Best Kill Streak 4 | 1 4 Combat Bots Only 3 | 1 3 Max Kills in Single Turn 2 | 1 2 Gunslinging . | . . Exploded 1 | . 1 Melee . | . . Uniques/NPCs Destroyed . | . . Combat | -11 -10 -------- Run | Yrd Mat Hostile Shots Fired 100 | 3 97 Missed 28 | 1 27 Damage Taken 800 | 21 779 Core 259 | . 259 Absorbed by Shields . | . . Redirected to Shielding 34 | . 34 Core Remaining (%) 100 | 100 . Volleys Fired 47 | 6 41 Largest 2 | 2 2 Hottest 40 | 40 40 Shots Fired 87 | 12 75 Gun 84 | 12 72 Cannon . | . . Launcher 3 | . 3 Special . | . . Kinetic 84 | 12 72 Thermal . | . . Explosive 3 | . 3 Electromagnetic . | . . Robot Hit Streak 7 | 3 7 Robot Miss Streak 3 | 2 3 Penetration Max . | . . Secondary Targets . | . . Shots Hit Robots 50 | 7 43 Core Hits 25 | 4 21 Critical Kills . | . . Critical Parts Destroyed . | . . Critical Strikes . | . . Melee Attacks . | . . Impact . | . . Slashing . | . . Piercing . | . . Sneak Attacks . | . . Combat Hostiles . | . . Follow-up Attacks . | . . Damage Inflicted 585 | 58 527 Guns 375 | 58 317 Cannons . | . . Explosions 202 | . 202 Melee . | . . Ramming 8 | . 8 Kinetic 375 | 58 317 Thermal . | . . Explosive 202 | . 202 Electromagnetic . | . . Impact . | . . Slashing . | . . Piercing . | . . Highest Corruption . | . . Average Corruption . | . . Corruption Purged . | . . Corruption Blocked . | . . Overload Shots . | . . Overflow Damage 15 | . 15 Projectiles . | . . Explosions 15 | . 15 Melee . | . . Knockbacks . | . . Impact . | . . Kinetic . | . . Secondary . | . . Self-Inflicted Damage 75 | . 75 Shots 3 | . 3 Rammed 4 | . 4 Targets Rammed 4 | . 4 Kicked . | . . Crushed . | . . Highest Temperature 30 | 12 30 Average Temperature 11 | 9 11 Received Heat Transfer 207 | 12 195 Siege Activations . | . . Robots Corrupted . | . . Combat Hostiles . | . . Parts Fried . | . . Impact Corruptions . | . . Robots Melted . | . . Combat Hostiles . | . . Parts Melted . | . . Heat Transferred . | . . Parts Sabotaged . | . . Parts Stolen . | . . Parts Stripped . | . . Power Chain Reactions . | . . Alert | -11 -10 ------- Run | Yrd Mat Peak Influence 129 | 25 129 Initial 16 | . 16 Average 43 | 4 58 Maximum Alert Level . | . . Low Security (%) 100 | 100 100 Level 1 . | . . Level 2 . | . . Level 3 . | . . Level 4 . | . . Level 5 . | . . High Security . | . . Max Security . | . . Squads Dispatched 1 | . 1 Investigation . | . . Extermination . | . . Reinforcement 1 | . 1 Assault . | . . Garrison . | . . Intercept . | . . Searches Triggered . | . . Construction Impeded . | . . Haulers Reinforced . | . . Active Scanning Responses . | . . Cargo Convoy Interrupts . | . . Stealth | -11 -10 --------- Run | Yrd Mat Distress Signals . | . . Communications Jammed . | . . Distress Signals . | . . Times Spotted 13 | 1 12 Peak Tracking Total 6 | 1 6 Tactical Retreats . | . . Traps | -11 -10 ------- Run | Yrd Mat Traps Triggered . | . . Indirectly . | . . Trap Hack Attempts . | . . Triggered . | . . Disarmed . | . . Reprogrammed . | . . Reused . | . . Traps Extracted . | . . Installed . | . . Triggered . | . . Machines | -11 -10 ---------- Run | Yrd Mat Machines Disabled . | . . Max in Single Turn . | . . Machines Repaired . | . . Machines Dismantled . | . . Machines Sabotaged . | . . Overloaded Fab Kills . | . . Hacking | -11 -10 --------- Run | Yrd Mat Machines Accessed 1 | . 1 Terminals 1 | . 1 Fabricators . | . . Repair Stations . | . . Recycling Units . | . . Scanalyzers . | . . Garrison Access . | . . Total Hacks 5 | . 5 Successful 4 | . 4 Failed 1 | . 1 Catastrophic . | . . Database Lockouts . | . . Manual . | . . Terminals 5 | . 5 Fabricators . | . . Repair Stations . | . . Recycling Units . | . . Scanalyzers . | . . Garrison Access . | . . Terminal Hacks 4 | . 4 Branch Access Points 1 | . 1 Locate Traps 1 | . 1 Dispatch Records 1 | . 1 Hauler Manifests 1 | . 1 Fabricator Hacks . | . . Repair Station Hacks . | . . Recycling Unit Hacks . | . . Scanalyzer . | . . Garrison Access Hacks . | . . Unauthorized Hacks . | . . Terminals . | . . Fabricators . | . . Repair Stations . | . . Recycling Units . | . . Scanalyzers . | . . Garrison Access . | . . Data Cores Recovered . | . . Used . | . . Hacking Detections . | . . Full Trace Events . | . . Feedback Events . | . . Feedback Blocked . | . . Robot Schematics Acquired . | . . Robots Built . | . . Authchips . | . . Time . | . . Total Robot Build Rating . | . . Part Schematics Acquired . | . . Parts Built . | . . Authchips . | . . Time . | . . Total Part Build Rating . | . . Parts Repaired . | . . Time . | . . Parts Recycled . | . . Recycled Matter . | . . Retrieved Matter . | . . Retrieved Components . | . . Parts Scanalyzed . | . . Part Schematics Acquired . | . . Parts Damaged . | . . Bothacking | -11 -10 ------------ Run | Yrd Mat Used RIF Installer . | . . Robots Hacked . | . . Non-combat . | . . Combat . | . . Robot Hacks Applied . | . . Relay Couplers Released . | . . Fabnet Peak Effective % . | . . Robots Rewired . | . . Allies Hacked . | . . Hacks Repelled . | . . Allies | -11 -10 -------- Run | Yrd Mat Total Allies . | . . Largest Group . | . . Highest-Rated Group . | . . Highest-Rated Ally . | . . Total Orders . | . . Ally Attacks . | . . Total Damage . | . . Kills . | . . Allies Corrupted . | . . Allies Melted . | . . Intel | -11 -10 ------- Run | Yrd Mat Robot Analysis Total . | . . Derelict Logs Recovered . | . . Drone Launches . | . . Drone Recoveries . | . . Exploration | -11 -10 ------------- Run | Yrd Mat Turns Passed 584 | 163 421 Spaces Moved 380 | 124 256 Core 33 | 18 15 Treads . | . . Legs 347 | 106 241 Wheels . | . . Hover . | . . Flight . | . . Fastest Speed 50 | 50 50 Average Speed 114 | 109 117 Slowest Speed 120 | 120 120 Overloaded Moves . | . . Propulsion Burnouts . | . . Robots Hopped . | . . Cave-ins Triggered . | . . Exploration Rate (%) 30 | 5 56 Regions Visited 1 Branch Regions . Pre-discovered Areas . | . . Known Exits Taken . | . . Unknown Exits Taken 1 | 1 . Scrap Searched . | . . Spaces Dug . | . . Terrain Destroyed 12 | . 12 Melee . | . . Projectile . | . . AOE 12 | . 12 Terrain Rammed . | . . Walls Destroyed . | . . Machines Disabled . | . . Actions | -11 -10 --------- Run | Yrd Mat Total 453 | 139 314 Wait 5 | . 5 Move 379 | 123 256 Hop . | . . Pick Up 6 | 5 1 Fast Attach 9 | 4 5 Attach 2 | 1 1 Detach . | . . Swap . | . . Drop 1 | . 1 Fire 47 | 6 41 Melee . | . . Ram 4 | . 4 Kick . | . . Crush . | . . Escape Stasis . | . . Rewire . | . . Trap . | . . Miscellaneous . | . . Route ------- -11/Scrapyard -10/Materials (discovered 3 exits: [*Mat] / Min x2) History --------- Turn | Location | Event 2 | -11/Scrapyard | Met Revision 17 136 | -11/Scrapyard | Discovered new exit (range 8) 164 | -11/Scrapyard | Entered Materials 233 | -10/Materials | Identified exit to Mines 317 | -10/Materials | Build established: Mutant 472 | -10/Materials | Discovered new exit (range 10) 560 | -10/Materials | Core integrity fell below 50% 573 | -10/Materials | Core integrity fell below 20% 585 | -10/Materials | Destroyed by G-34 Mercenary with Small Laser Last Messages --------------- 00568_ Destroyed Grenade Launcher. 00570_ Slammed into S-10 Pest. Ramming works as a last resort when unarmed or blocked, but can have serious negative consequences. 00570_ Destabilizing: Core damaged (-10). 00571_ K-01 Serf collects debris. 00571_ U-05 Engineer lays Concrete. 00571_ Slammed into S-10 Pest. 00572_ U-05 Engineer lays Concrete. 00572_ Slammed into S-10 Pest. 00575_ K-01 Serf cleans the Matter Pump. 00575_ U-05 Engineer builds a Wall. 00575_ K-01 Serf collects debris. 00576_ Acquired 34 matter. 00577_ K-01 Serf collects debris. 00578_ Acquired Lgt. Ion Engine. 00579_ K-01 Serf collects debris. 00583_ U-05 Engineer builds a Wall. [Achievement: First Step to Greatness] Map ----- +----------------------------------------------------+ | ???????????????????????????????#######?? | | ??????????????????????????????? # ##?? | | ??????????????????????????????? # < ?? | | ??????????????????????????????? # ##?? | | ?????????????>????????????????? + #### | | ??????????????????????????????? # #### | | ?????????????????????????????? # ## | | ???????????? ?######????????### ## | | ???????????# #######????????## =# " | | ???????????# ###### ??## # " | | ??????##???# ? ###### ??## + " | | ??????? ??# """ ??## # | | ???????? ?## """ ##??## # | | ???????? # """ ##??####%### | | ????????? # ######## ### | | ??????????/ ########/##### | | ??????????# # #### | | ??????????# ##+#### # """ """ ##?? | | ??????????# # ## # """ R" ##?? | | ??????????# ""## # """ """ ##?? | | ??????????# k%"" # / ##?? | | ??????????# k*T"## # #### | | ??????????# %""## ## #### | | ??????????# s""## ## + | | ??????????# g u ############### | | ??????????# @ ############### | | ??????????# ### ## #####?????????# | | ??????????# ##?????????# | | ??????????# ##?????????# | | ??????????# ##?????????? | | ??????????# """ """ """ ##?????????? | | ??????????# """ """ """ ##?????????? | | ??????????# """ """ """ ##?????????? | | ??????????# ?????????? | | ??????????+ ?????????? | | ??????????# ? ?? ???????? | | ??????????# ?? # ##??#### ???????? | | ????????????? ? ##??##### ??????? | | ????????????? ?! !#???????????????? | | ?????????????????#!!!!##???????????????? | | ??????????????????######???????????????? | | ??????????????????#####????????????????? | | ???????????????????????????????????????? | | ???????????????????????????????????????? | | ???????????????????????????????????????? | | ???????????????????????????????????????? | | ???????????????????????????????????????? | | ???????????????????????????????????????? | | ???????????????????????????????????????? | | ???????????????????????????????????????? | +----------------------------------------------------+ Best States ------------- Heat Dissipation 25 Energy Generation 10 Energy Capacity 125 Matter Stores 300 Matter Capacity 300 Sight Range 16 Terrain Scan Density 10 Weapon Shielding 33 Evasion (%) 55 Item Schematics ----------------- None Robot Schematics ------------------ None Fabricated ------------ Nothing Alien Tech Used ----------------- None Achievements -------------- First Step to Greatness Shopping List Uninvited Guest Challenges ------------ None Game ------ Seed ReactionPropulsionExpander Manual? 0 Play Time 00:09:32 Cumulative 0.1 hours Start 2025.03.10 @ 18:18:15 End 2025.03.10 @ 18:45:40 Sessions 2 Manual Loads 0 Difficulty Rogue Special Mode None Game No. 1 Rogue 1 Adventurer 0 Explorer 0 Win Type - Total 0 Types 0/0/0/0/0/0/0/0/0 Lore% 0 Gallery% 0 Achievement% 1 Wizard Run 0 Options --------- Layout 1 ASCII 0 Keyboard 0 Movement Mouse Keybinds 0 Fullscreen 1 Font 24/Smallcaps Map View 50x35 Zoom Use 0% Tactical HUD 1 Map Filters NONE Filters NONE Steam 1 RUN: bc6fa371-b0cf-45ae-98b0-dbe37fc4b80c